bitfinex/quotes_ETHUSD_20250720
["timestamp","ask_amount","ask_price","bid_price","bid_amount"]
[1752986581582,0.55,3651.8,3651.2,0.778]
[1752986581812,4.223,3651.7,3651.3,2.73871316]
[1752986582220,4.223,3651.7,3651.4,0.4542]
[1752986582517,0.55,3651.6,3651.4,0.4542]
[1752986582814,0.55,3651.6,3651.2,3.51680237]
[1752986582815,0.55,3651.6,3651.5,0.4542]
[1752986583904,0.55,3651.6,3651.2,3.97101659]
[1752986584104,0.55,3651.6,3651.2,0.778]
[1752986584511,0.55,3651.6,3651.3,0.4542]
[1752986584892,0.55,3651.6,3651.4,0.4542]
[1752986585100,0.55,3651.6,3651.2,0.778]
[1752986585101,0.55,3651.6,3651.5,0.4542]
[1752986585284,0.55,3651.6,3651.5,3.19280057]
[1752986585698,3.55,3652.4,3651.5,3.19280057]
[1752986585899,4.22,3652.3,3651.7,0.7977]
[1752986586135,4.22,3652.3,3651.8,0.4542]
[1752986586314,4.22,3652.3,3651.9,2.73829714]
[1752986586586,0.55,3652.2,3651.7,3.53614493]
[1752986586814,0.55,3652.2,3651.8,3.19255409]
[1752986587116,0.55,3652.2,3651.8,0.4542]
[1752986587521,0.55,3652.2,3651.8,3.19256736]
[1752986587713,0.55,3652.2,3651.9,0.4542]
[1752986588490,0.55,3652.2,3651.7,0.7977]
[1752986588692,0.55,3652.2,3652.0,0.4542]
[1752986590223,0.55,3652.2,3651.9,2.7382913]
[1752986590431,0.55,3652.2,3652.1,0.4542]
[1752986592133,0.55,3652.2,3652.1,3.19235065]
[1752986592429,0.55,3652.2,3652.1,0.4542]
[1752986592626,0.55,3652.2,3652.1,3.19235065]
[1752986593530,4.22,3652.3,3652.2,3.54707568]
[1752986593696,4.22,3652.3,3652.2,4.00127568]
[1752986596030,0.002,3653.2,3652.7,2.73764044]
[1752986596204,3.55,3653.0,3652.7,2.73764044]
[1752986596404,3.55,3653.0,3652.7,3.19184044]
[1752986596637,3.55,3653.0,3652.8,0.8296]
[1752986596796,0.55,3653.0,3652.9,2.73755098]
[1752986597001,4.219,3653.1,3652.9,2.73755098]
[1752986597002,4.219,3653.1,3653.0,2.73747604]
[1752986597220,0.002,3653.2,3653.1,2.73740111]
[1752986597736,0.002,3653.2,3653.1,3.19160111]
[1752986601427,0.1388,3653.2,3653.1,4.02120111]
[1752986601845,0.1388,3653.2,3653.1,4.69707591]
[1752986602043,0.002,3653.2,3653.1,4.69707591]
[1752986604042,0.1388,3653.8,3653.7,2.73695158]
[1752986604246,0.1388,3653.8,3653.7,3.56655158]
[1752986604446,0.1388,3653.8,3653.7,4.00745158]
[1752986605750,0.1388,3653.8,3653.7,3.56655158]
[1752986606157,0.1388,3653.8,3653.7,4.00745158]
[1752986606339,0.1388,3653.8,3653.7,5.10370096]
[1752986606812,0.55,3653.7,3653.4,0.8322]
[1752986607012,0.1368,3653.4,3653.3,2.73723659]
[1752986608956,0.1368,3653.4,3652.8,4.217]
[1752986608957,0.55,3653.3,3652.8,4.217]
[1752986609114,0.55,3653.3,3653.2,2.73732617]
[1752986609442,4.219,3653.8,3652.9,0.4409]
[1752986609443,0.55,3653.7,3652.9,0.4409]
[1752986609646,0.55,3653.7,3653.3,2.73720145]
[1752986609950,1.0271,3653.7,3653.3,2.73720145]
[1752986610451,1.5018,3653.7,3653.4,2.73712293]
[1752986610856,0.6868,3653.4,3653.3,2.73723504]
[1752986611054,0.55,3653.4,3653.3,2.73723504]
[1752986611752,0.6868,3653.3,3653.2,2.737306]
[1752986612053,0.55,3653.3,3653.2,2.737306]
[1752986613239,0.55,3653.3,3653.2,3.178206]
[1752986613668,0.55,3653.3,3653.2,3.945406]
[1752986614018,0.4771,3653.7,3653.2,3.945406]
[1752986614215,0.55,3653.1,3651.8,1.2081]
[1752986614551,0.1368,3653.2,3652.2,0.7672]
[1752986614552,3.55,3652.9,3652.2,0.7672]
[1752986614851,0.55,3652.7,3652.4,2.73791448]
[1752986615152,0.55,3652.5,3651.6,0.7672]
[1752986615454,0.55,3652.5,3652.3,2.73795031]
[1752986615650,3.55,3652.3,3652.0,0.001]
[1752986615826,0.55,3652.1,3652.0,0.001]
[1752986616028,0.58422688,3652.1,3652.0,0.001]
[1752986616238,1.0247,3652.1,3652.0,0.001]
[1752986616434,3.76285065,3652.1,3652.0,0.001]
[1752986616759,7.55877753,3652.1,3652.0,0.001]
[1752986616919,9.14110405,3652.1,3652.0,1e-08]
[1752986618488,9.14110405,3652.1,3651.5,0.001]
[1752986618489,4.05022557,3651.6,3651.5,0.001]
[1752986618794,11.32045713,3651.6,3651.5,0.001]
[1752986618992,12.11595027,3651.6,3651.5,0.001]
[1752986619171,12.59065027,3651.6,3651.5,0.001]
[1752986619900,9.8521247,3651.6,3651.5,0.001]
[1752986620556,9.3774247,3651.6,3651.5,0.001]
[1752986620759,3.0,3651.6,3651.5,0.001]
[1752986620973,7.237,3651.6,3651.5,0.001]
[1752986621139,7.7117,3651.6,3651.5,0.001]
[1752986621341,11.00022557,3651.6,3651.5,0.001]
[1752986621536,12.10024813,3651.6,3651.5,0.001]
[1752986621771,12.91624813,3651.6,3651.5,0.001]
[1752986624170,12.44154813,3651.6,3651.5,0.001]
[1752986624384,11.34152557,3651.6,3651.5,0.001]
[1752986624800,10.52952557,3651.6,3651.5,0.001]
[1752986625078,11.00422557,3651.6,3651.5,0.001]
[1752986625779,10.52952557,3651.6,3651.5,0.001]
[1752986626155,11.00422557,3651.6,3651.5,0.001]
[1752986626342,12.46008594,3651.6,3651.5,0.001]
[1752986627651,11.98538594,3651.6,3651.5,0.001]
[1752986627962,7.791,3651.6,3651.5,0.001]
[1752986628471,11.00422557,3651.6,3651.5,0.001]
[1752986629061,18.90422557,3651.6,3651.5,0.001]
[1752986632864,18.42952557,3651.6,3651.5,0.001]
[1752986633381,15.691,3651.6,3651.5,0.001]
[1752986635075,7.791,3651.6,3651.5,0.001]
[1752986641203,8.2234,3651.6,3651.5,0.001]
[1752986641698,7.791,3651.6,3651.5,0.001]
[1752986644411,0.833,3652.2,3651.6,0.7921]
[1752986644412,3.0,3652.2,3651.6,0.7921]
[1752986644712,0.7558,3652.8,3651.6,0.7921]
[1752986644916,0.1368,3652.0,3651.9,2.73830061]
[1752986645206,0.1368,3652.0,3651.9,3.20380061]
[1752986645207,4.3638,3652.0,3651.9,3.20380061]
[1752986649702,4.9138,3652.0,3651.9,2.73830061]
[1752986649906,0.55,3651.9,3651.8,2.7383528]
[1752986650878,0.55,3651.9,3651.7,2.73842596]
[1752986651078,4.222,3651.8,3651.7,2.73842596]
[1752986655329,4.222,3651.8,3651.6,2.73851854]
[1752986655488,4.222,3651.8,3651.5,0.001]
[1752986655489,0.55,3651.7,3651.5,0.001]
[1752986656122,0.55,3651.7,3651.5,2.73959733]
[1752986656508,0.55,3651.7,3651.5,2.73957675]
[1752986657130,0.9824,3651.6,3651.5,0.001]
[1752986657337,0.55,3651.6,3651.5,0.001]
[1752986659920,0.55,3651.6,3651.5,2.73960057]
[1752986660125,4.222,3651.8,3651.7,2.73845058]
[1752986660310,4.222,3651.8,3651.7,3.53685058]
[1752986660505,4.222,3651.8,3651.7,3.97965058]
[1752986661035,4.222,3651.8,3651.7,3.53685058]
[1752986661400,4.222,3651.8,3651.7,2.73845058]
[1752986661747,4.222,3651.8,3651.7,3.18125058]
[1752986662043,4.222,3651.8,3651.7,3.97965058]
[1752986663549,0.002,3652.0,3651.9,2.73830061]
[1752986663747,4.222,3652.0,3651.9,2.73830061]
[1752986664052,3.51402557,3651.6,3651.5,0.001]
[1752986664245,8.5455,3651.6,3651.5,0.001]
[1752986664426,11.74562557,3651.6,3651.5,0.001]
[1752986669040,14.88928636,3651.6,3651.5,0.001]
[1752986670569,15.39813044,3651.6,3651.5,0.001]
[1752986670726,17.2117818,3651.6,3651.5,0.001]
[1752986671122,16.9573614,3651.6,3651.5,0.001]
[1752986671720,16.9583614,3651.6,3651.5,0.001]
[1752986672044,16.95826082,3651.6,3651.5,0.001]
[1752986673461,24.85804817,3651.6,3651.5,0.001]
[1752986674162,24.60393772,3651.6,3651.5,0.001]
[1752986681843,24.99312178,3651.6,3651.5,0.001]
[1752986685254,25.24736324,3651.6,3651.5,0.001]
[1752986686561,24.85817918,3651.6,3651.5,0.001]
[1752986687331,24.85839304,3651.6,3651.5,0.001]
[1752986688557,25.11301789,3651.6,3651.5,0.001]
[1752986688932,24.85839304,3651.6,3651.5,0.001]
[1752986689130,25.11300943,3651.6,3651.5,0.001]
[1752986689336,31.68800943,3651.6,3651.5,0.001]
[1752986689970,31.68290943,3651.6,3651.5,0.001]
[1752986693663,31.6834423,3651.6,3651.5,0.001]
[1752986694979,31.2269423,3651.6,3651.5,0.001]
[1752986695479,31.6834423,3651.6,3651.5,0.001]
[1752986701600,31.68391586,3651.6,3651.5,0.001]
[1752986704251,30.45191586,3651.6,3651.5,0.001]
[1752986704458,30.45264744,3651.6,3651.5,0.001]
[1752986705090,26.23164744,3651.6,3651.5,0.001]
[1752986705288,28.08799608,3651.6,3651.5,0.001]
[1752986705587,28.63799608,3651.6,3651.5,0.4352]
[1752986705793,28.08799608,3651.6,3651.5,0.4352]
[1752986705970,28.63799608,3651.6,3651.5,0.001]
[1752986707805,28.38264811,3651.6,3651.5,0.4352]
[1752986708492,28.12718636,3651.6,3651.5,0.001]
[1752986709798,28.12718636,3651.6,3651.5,0.4352]
[1752986709998,23.90718636,3651.6,3651.5,0.001]
[1752986710164,28.12718636,3651.6,3651.5,0.4352]
[1752986710801,28.12718636,3651.6,3651.5,1.2251]
[1752986713411,21.55218636,3651.6,3651.5,1.2251]
[1752986714607,21.55218636,3651.6,3651.5,0.4352]
[1752986715603,18.81366079,3651.6,3651.5,0.4352]
[1752986715771,6.69366079,3651.6,3651.5,0.4352]
[1752986715972,10.91266079,3651.6,3651.5,0.4352]
[1752986719393,13.65118636,3651.6,3651.5,0.4352]
[1752986720276,10.91266079,3651.6,3651.5,0.001]
[1752986721074,13.65118636,3651.6,3651.5,0.001]
[1752986721272,13.65118636,3651.6,3651.5,0.4438]
[1752986724877,10.91266079,3651.6,3651.5,0.4438]
[1752986725413,13.65118636,3651.6,3651.5,0.4438]
[1752986725913,10.91266079,3651.6,3651.5,0.4438]
[1752986726214,13.65118636,3651.6,3651.5,0.4438]
[1752986727406,10.91266079,3651.6,3651.5,0.4438]
[1752986727796,13.65118636,3651.6,3651.5,0.4438]
[1752986728973,10.91266079,3651.6,3651.5,0.4438]
[1752986730026,0.55,3651.6,3651.5,3.18240057]
[1752986730247,4.217,3651.6,3651.5,4.4026465]
[1752986730549,4.767,3651.6,3651.5,4.4026465]
[1752986731501,4.767,3651.6,3651.5,4.00530057]
[1752986733128,4.767,3651.6,3651.5,2.73960057]
[1752986733703,4.767,3651.6,3651.5,3.18240057]
[1752986735265,3.002,3652.0,3651.9,2.73830061]
[1752986735548,0.6868,3651.9,3651.7,2.73837727]
[1752986735859,0.6868,3651.9,3651.8,2.73837559]
[1752986735860,0.55,3651.9,3651.8,2.73837559]
[1752986736342,0.1368,3651.8,3651.7,2.73843303]
[1752986736539,0.55,3651.7,3651.5,0.8104]
[1752986736732,4.9028,3651.6,3651.5,0.001]
[1752986737431,4.9028,3651.6,3651.5,2.73960057]
[1752986737633,4.9028,3651.6,3651.5,0.001]
[1752986737941,11.91989462,3651.6,3651.5,0.001]
[1752986738243,12.74839462,3651.6,3651.5,0.001]
[1752986739910,20.64839462,3651.6,3651.5,0.001]
[1752986741410,20.90289249,3651.6,3651.5,0.001]
[1752986742745,3.28875058,3651.3,3651.2,0.001]
[1752986742942,3.28875058,3651.3,3650.7,0.001]
[1752986742943,3.28912567,3650.8,3650.7,0.001]
[1752986743150,13.64878646,3650.8,3650.7,0.001]
[1752986743517,14.11928646,3650.8,3650.7,0.001]
[1752986743838,15.53121511,3650.8,3650.7,0.001]
[1752986745036,15.06071511,3650.8,3650.7,0.001]
[1752986745618,15.53121511,3650.8,3650.7,0.001]
[1752986745917,12.79208944,3650.8,3650.7,0.001]
[1752986746542,12.32158944,3650.8,3650.7,0.001]
[1752986746753,10.90966079,3650.8,3650.7,0.001]
[1752986748523,7.766,3650.8,3650.7,0.001]
[1752986751128,4.766,3650.8,3650.7,3.1939007]
[1752986751463,4.765,3650.8,3650.7,0.001]
[1752986751637,4.765,3650.8,3650.7,2.7402007]
[1752986751845,4.765,3650.8,3650.7,3.1939007]
[1752986752045,4.765,3650.8,3650.7,0.4547]
[1752986752860,4.765,3650.8,3650.7,3.1939007]
[1752986753056,5.85586608,3650.8,3650.7,0.001]
[1752986754356,4.765,3650.8,3650.7,0.001]
[1752986757638,7.765,3650.8,3650.7,0.001]
[1752986757839,8.2385,3650.8,3650.7,0.001]
[1752986760478,7.765,3650.8,3650.7,0.001]
[1752986761405,3.55,3650.8,3650.7,0.001]
[1752986761529,3.55,3650.8,3650.7,3.9664007]
[1752986761730,4.764,3650.8,3650.7,3.9664007]
[1752986763931,4.764,3650.8,3650.7,1.2272]
[1752986765768,11.45302567,3650.8,3650.7,0.001]
[1752986771595,8.7139,3650.8,3650.7,0.001]
[1752986771895,11.45302567,3650.8,3650.7,0.001]
[1752986775387,11.79072567,3650.8,3650.7,0.001]
[1752986775597,11.79072567,3650.8,3648.7,3.0]
[1752986775598,4.10257836,3647.8,3647.7,0.78375219]
[1752986775750,0.55,3647.1,3645.8,0.4537]
[1752986775954,3.69366079,3645.9,3645.8,0.4537]
[1752986776201,7.4991142,3645.9,3645.8,0.4537]
[1752986776572,0.55,3645.8,3645.6,0.8242]
[1752986776767,4.931,3645.7,3645.6,1.2779]
[1752986776974,4.931,3645.7,3645.6,0.4537]
[1752986777366,0.55,3645.7,3645.6,0.4537]
[1752986777551,4.932,3645.7,3645.6,0.4537]
[1752986777952,4.932,3645.7,3645.2,0.8242]
[1752986777953,0.55,3645.6,3645.2,0.8242]
[1752986778161,4.391,3645.5,3645.3,0.4537]
[1752986778456,4.941,3645.5,3645.4,0.4537]
[1752986779599,0.55,3645.3,3645.2,0.8242]
[1752986779764,4.939,3645.3,3645.2,0.8242]
[1752986780394,4.939,3645.3,3645.2,1.2914]
[1752986781092,4.389,3645.3,3645.2,1.69488433]
[1752986781260,4.389,3645.3,3645.2,4.43821802]
[1752986781456,3.0,3646.2,3645.2,1.69488433]
[1752986781457,0.55,3646.1,3645.2,1.69488433]
[1752986781791,4.392,3646.0,3645.4,2.74318318]
[1752986781967,4.391,3645.9,3645.4,2.74312122]
[1752986782169,4.391,3645.9,3645.2,0.8242]
[1752986782170,4.391,3645.9,3645.8,2.74288222]
[1752986782372,4.391,3645.9,3645.8,3.21008222]
[1752986782573,4.941,3646.0,3645.9,2.74280698]
[1752986782857,4.39,3646.0,3645.9,3.21000698]
[1752986783085,4.39,3646.0,3645.9,4.61249293]
[1752986783287,4.39,3646.2,3646.1,2.74265653]
[1752986783483,1.27407059,3647.1,3646.2,2.74258131]
[1752986783484,4.39,3646.3,3646.2,2.74258131]
[1752986783886,4.39,3646.3,3646.2,3.20978131]
[1752986785019,0.58427474,3647.0,3646.9,2.74205489]
[1752986785169,4.388,3647.0,3646.9,2.74205489]
[1752986785493,4.938,3647.0,3646.9,0.4672]
[1752986786549,0.55,3646.9,3646.6,3.20947947]
[1752986786704,0.55,3646.9,3646.8,2.74213008]
[1752986786866,0.55,3646.8,3646.0,2.74270672]
[1752986787070,0.55,3646.8,3646.7,2.74214357]
[1752986787299,0.55,3646.8,3646.7,3.20934357]
[1752986788704,0.55,3646.8,3645.9,1.54028595]
[1752986788705,0.1368,3646.7,3646.0,0.4672]
[1752986788904,0.1368,3646.1,3646.0,3.2099242]
[1752986791786,0.1368,3646.1,3646.0,3.88601935]
[1752986792195,3.0,3647.1,3646.8,2.74212793]
[1752986792525,4.924,3647.0,3646.8,2.74212793]
[1752986792722,0.80039812,3647.0,3646.8,2.74212793]
[1752986792922,7.924,3647.0,3646.9,2.74205489]
[1752986793130,8.17439812,3647.0,3646.9,2.74205489]
[1752986793800,5.17439812,3647.0,3646.9,2.74205489]
[1752986794000,4.924,3647.0,3646.9,2.74205489]
[1752986794292,5.17439812,3647.0,3646.9,2.74205489]
[1752986794794,4.924,3647.0,3646.9,2.74205489]
[1752986794993,5.17439812,3647.0,3646.9,2.74205489]
[1752986797721,0.55,3646.9,3646.5,0.4672]
[1752986797915,0.25039812,3646.8,3646.4,2.74242169]
[1752986798120,0.1368,3646.5,3646.4,2.74242169]
[1752986798421,0.1368,3646.5,3646.4,3.20962169]
[1752986798622,0.38719812,3646.5,3646.4,3.20962169]
[1752986800328,0.38719812,3646.5,3645.9,4.0181649]
[1752986800493,0.25039812,3646.4,3646.2,2.74258079]
[1752986800697,0.25039812,3646.3,3646.2,3.20978079]
[1752986804188,0.50381444,3646.3,3646.2,3.20978079]
[1752986804386,0.25039812,3646.3,3646.2,3.20978079]
[1752986805207,0.50381443,3646.3,3646.2,3.20978079]
[1752986805619,0.25039812,3646.3,3646.2,3.20978079]
[1752986805816,0.25039812,3646.3,3646.2,4.32215166]
[1752986806231,0.2541704,3646.6,3646.5,2.74235568]
[1752986806440,0.64513415,3646.6,3646.5,2.74235568]
[1752986807029,0.64513415,3646.6,3646.5,3.20955568]
[1752986807443,0.64513415,3646.6,3646.5,5.40035702]
[1752986807959,0.64522285,3646.6,3646.5,5.40035702]
[1752986808342,0.3910591,3646.6,3646.5,5.40035702]
[1752986814230,0.3910591,3646.6,3646.5,2.74235568]
[1752986815940,0.8483591,3646.6,3646.5,2.74235568]
[1752986816145,0.1368,3646.6,3646.5,2.74235568]
[1752986817366,0.1368,3646.6,3646.5,3.21515568]
[1752986820532,0.1368,3646.6,3646.5,2.74235568]
[1752986821960,0.1368,3646.6,3646.5,3.21515568]
[1752986822468,0.55,3646.5,3646.2,0.8071]
[1752986822658,1.0073,3646.5,3646.4,2.74243089]
[1752986822854,0.55,3646.7,3646.4,2.74243089]
[1752986823171,1.0073,3646.7,3646.5,2.74233664]
[1752986823884,1.0073,3646.7,3646.6,2.74228048]
[1752986825237,0.55,3646.9,3646.6,2.74228048]
[1752986825438,1.0073,3646.9,3646.6,2.74228048]
[1752986825639,1.0073,3646.9,3646.7,2.74219856]
[1752986826050,1.0073,3646.9,3646.8,2.74213008]
[1752986826051,0.55,3646.9,3646.8,2.74213008]
[1752986829777,0.55,3647.2,3647.0,2.74191206]
[1752986830074,5.3183,3647.1,3647.0,2.74191206]
[1752986831186,0.002,3647.7,3647.6,2.74152867]
[1752986831763,0.002,3647.7,3647.6,3.21432867]
[1752986832165,0.1388,3647.7,3647.6,4.01132867]
[1752986832480,0.002,3647.7,3647.6,4.01132867]
[1752986832685,0.002,3647.7,3647.6,5.11792784]
[1752986834175,1e-08,3647.7,3647.6,5.11792784]
[1752986834495,1e-08,3647.7,3647.6,5.25472784]
[1752986835587,1e-08,3647.7,3647.6,9.56372784]
[1752986837807,1e-08,3647.7,3647.6,5.25472784]
[1752986837972,1e-08,3647.7,3647.6,12.56172784]
[1752986846109,1e-08,3648.5,3648.3,0.7935]
[1752986846290,1e-08,3648.5,3648.4,10.96722752]
[1752986846880,1e-08,3648.5,3648.4,11.41312752]
[1752986852497,1e-08,3649.2,3649.1,2.74040174]
[1752986852698,1e-08,3649.2,3649.1,11.08064191]
[1752986852901,1e-08,3649.2,3649.1,11.66334191]
[1752986857702,1e-08,3649.2,3649.1,16.32334191]
[1752986858239,1e-08,3650.0,3649.9,2.73980109]
[1752986858420,1e-08,3650.0,3649.9,10.77710109]
[1752986858615,1e-08,3650.0,3649.9,12.7115004]
[1752986859705,1e-08,3650.0,3649.9,15.85516119]
[1752986863933,0.002,3651.6,3651.5,2.73860057]
[1752986864165,0.4755,3651.6,3651.5,7.01260057]
[1752986865367,0.002,3651.6,3651.5,7.01260057]
[1752986867029,1e-08,3651.6,3651.5,8.13820992]
[1752986872793,1e-08,3651.6,3651.5,8.61100992]
[1752986872961,1e-08,3651.6,3651.5,12.43500992]
[1752986873558,0.4617,3652.7,3651.7,2.73845058]
[1752986873783,0.4617,3652.7,3652.6,2.73777583]
[1752986874093,0.4617,3652.7,3652.6,7.00377583]
[1752986874303,0.002,3652.7,3652.6,7.00377583]
[1752986874805,0.002,3652.7,3652.6,7.14057583]
[1752986874962,1e-08,3652.8,3652.7,2.73770087]
[1752986875163,1e-08,3652.8,3652.7,7.2993153]
[1752986879011,1e-08,3652.8,3652.7,11.5613153]
[1752986879656,0.45970001,3652.8,3652.7,2.73770087]
[1752986879895,1.39740001,3652.8,3652.7,2.73770087]
[1752986880069,1.94740001,3652.8,3652.5,2.73784605]
[1752986880263,1.94740001,3652.8,3651.8,4.16878553]
[1752986880264,1.2606,3652.7,3652.4,2.73787587]
[1752986880491,0.7673,3652.6,3652.5,2.73785078]
[1752986880800,1.227,3652.6,3652.5,2.73785078]
[1752986881596,0.9041,3652.5,3652.4,2.73790549]
[1752986881898,1.3638,3652.5,3652.4,2.73790549]
[1752986882656,1.227,3652.5,3652.4,2.73790549]
[1752986889034,1.3638,3652.5,3652.4,2.73790549]
[1752986889236,1.227,3652.5,3652.4,2.73790549]
[1752986893240,1.3638,3652.5,3652.4,2.73790549]
[1752986893533,2.9638,3652.5,3652.4,2.73790549]
[1752986895656,2.0597,3652.5,3652.4,2.73790549]
[1752986895873,1.6,3652.5,3652.4,3.71030326]
[1752986896022,1.6,3652.5,3652.4,2.73790549]
[1752986897127,1.6,3652.5,3652.4,2.73890549]
[1752986898645,0.1368,3652.6,3652.5,2.73785078]
[1752986898846,0.5965,3652.6,3652.5,2.73785078]
[1752986900566,0.1368,3652.6,3652.5,2.73785078]
[1752986903164,0.1368,3652.6,3652.5,3.98363363]
[1752986903371,1e-08,3652.8,3652.7,2.73770087]
[1752986903669,1e-08,3652.8,3652.7,6.97870087]
[1752986905454,0.47150001,3652.8,3652.7,6.97870087]
[1752986907744,0.47150001,3652.8,3652.7,2.73770087]
[1752986907949,1.27870001,3652.8,3652.7,2.73770087]
[1752986909479,1.82870001,3652.8,3652.7,2.73770087]
[1752986910447,1e-08,3652.8,3652.7,2.73770087]
[1752986910676,1e-08,3652.8,3652.7,3.75225604]
[1752986911181,1e-08,3652.8,3652.7,8.42125604]
[1752986913889,1e-08,3653.5,3652.7,11.42125604]
[1752986914090,1e-08,3653.5,3653.4,3.62927632]
[1752986914265,1e-08,3653.5,3653.4,8.50593057]
[1752986914865,1e-08,3653.5,3653.4,7.75063057]
[1752986917157,1e-08,3653.5,3653.4,8.17963057]
[1752986917371,1e-08,3653.5,3653.4,8.93493057]
[1752986918413,1e-08,3653.5,3653.4,11.93493057]
[1752986922508,1e-08,3653.5,3653.4,7.26593057]
[1752986922788,1e-08,3653.5,3653.4,11.93393057]
[1752986923360,1e-08,3653.5,3653.4,7.69493057]
[1752986923556,1e-08,3653.5,3653.4,11.93393057]
[1752986925380,0.002,3654.0,3653.9,2.73680177]
[1752986925606,0.002,3654.0,3653.9,7.24948195]
[1752986925795,0.002,3654.3,3654.2,2.73657708]
[1752986926004,0.002,3654.3,3654.2,6.97457708]
[1752986926161,0.002,3654.3,3654.2,7.54037708]
[1752986928671,0.002,3654.3,3654.2,10.54037708]
[1752986928872,0.002,3654.3,3654.2,12.25134966]
[1752986933027,0.002,3654.3,3654.2,11.82234966]
[1752986938517,0.002,3654.3,3654.2,4.58434966]
[1752986938719,0.4475,3654.3,3654.2,2.73657708]
[1752986938927,0.4475,3654.3,3654.2,6.97257708]
[1752986941399,0.4475,3654.3,3654.2,2.73657708]
[1752986941701,0.4475,3654.3,3654.2,6.97257708]
[1752986941902,0.002,3654.3,3654.2,6.97257708]
[1752986942299,0.002,3654.3,3654.2,2.73657708]
[1752986942506,0.002,3654.3,3654.2,6.97257708]
[1752986942704,0.002,3654.3,3654.2,7.95718146]
[1752986943292,0.002,3654.3,3654.2,6.97257708]
[1752986947020,0.002,3654.3,3654.2,7.79497708]
[1752986947438,0.4475,3654.3,3654.2,6.97257708]
[1752986947947,0.4475,3654.3,3654.2,2.73657708]
[1752986948160,0.4475,3654.3,3654.2,6.97257708]
[1752986948728,0.4475,3654.3,3654.2,2.73657708]
[1752986948914,0.4475,3654.3,3654.2,6.97257708]
[1752986949922,0.9975,3654.3,3654.1,2.73662519]
[1752986950127,0.8203,3654.2,3654.1,2.73662519]
[1752986950327,1.2658,3654.2,3654.1,2.73662519]
[1752986951560,0.55,3654.1,3653.2,0.7884942]
[1752986951858,3.69566079,3654.3,3653.6,2.73701824]
[1752986951859,0.55,3653.9,3653.6,2.73701824]
[1752986952039,0.6868,3653.7,3653.6,2.73701824]
[1752986952239,1.8862,3653.7,3653.6,2.73701824]
[1752986953564,1.8862,3653.7,3653.4,2.73714064]
[1752986953795,0.55,3653.5,3653.3,4.235]
[1752986954059,0.55,3653.5,3653.3,2.73724007]
[1752986954239,0.4455,3653.4,3653.2,0.7884942]
[1752986954434,0.4455,3653.4,3653.3,2.73725125]
[1752986954435,0.5823,3653.4,3653.3,2.73725125]
[1752986954641,1.3039,3653.3,3653.2,0.7884942]
[1752986954840,1.97565692,3653.3,3653.2,0.7884942]
[1752986955165,4.71290817,3653.3,3653.2,0.7884942]
[1752986955768,3.95900817,3653.3,3653.1,0.001]
[1752986956064,1.1994,3653.2,3653.1,0.001]
[1752986957273,3.93672617,3653.2,3653.1,0.001]
[1752986957445,2.68238327,3653.2,3653.1,0.001]
[1752986959131,9.01372601,3653.2,3653.1,0.001]
[1752986959345,8.97950944,3653.2,3653.1,0.001]
[1752986960901,7.08410087,3652.7,3652.6,0.001]
[1752986961100,15.4459326,3652.7,3652.6,0.001]
[1752986961257,15.9042326,3652.7,3652.6,0.001]
[1752986961684,15.9042326,3652.7,3652.6,1e-08]
[1752986961685,23.8042326,3652.7,3652.6,1e-08]
[1752986962854,4.08425078,3652.5,3652.4,0.001]
[1752986963093,9.3334041,3652.5,3652.4,0.001]
[1752986963293,9.75748097,3652.5,3652.4,0.001]
[1752986963791,9.75748097,3652.5,3652.1,0.001]
[1752986963792,2.73807568,3652.2,3652.1,0.001]
[1752986964087,14.07226241,3652.2,3652.1,0.001]
[1752986964252,14.49633647,3652.2,3652.1,0.001]
[1752986964454,16.17136102,3652.2,3652.1,0.001]
[1752986969286,24.07136102,3652.2,3652.1,0.001]
[1752986970386,19.83536102,3652.2,3652.1,0.001]
[1752986970591,24.07236102,3652.2,3652.1,0.001]
[1752986970960,5.64728534,3652.2,3652.1,0.001]
[1752986971161,9.88428534,3652.2,3652.1,0.001]
[1752986971382,13.43428534,3652.2,3652.1,0.001]
[1752986971583,9.74062455,3652.2,3652.1,0.001]
[1752986971896,10.29062455,3652.2,3652.1,0.001]
[1752986972204,9.74062455,3652.2,3652.1,0.001]
[1752986972577,10.29062455,3652.2,3652.1,0.001]
[1752986976092,6.05362455,3652.2,3652.1,0.001]
[1752986976294,8.6156,3652.2,3652.1,0.001]
[1752986984017,11.35367568,3652.2,3652.1,0.001]
[1752986985029,11.60834052,3652.2,3652.1,0.001]
[1752986985235,11.86312979,3652.2,3652.1,0.001]
[1752986986995,19.76312979,3652.2,3652.1,0.001]
[1752986987201,22.48063013,3652.2,3652.1,0.001]
[1752986989933,3.28845058,3651.7,3651.6,0.001]
[1752986990147,11.466642,3651.7,3651.6,0.001]
[1752986990478,12.38856548,3651.7,3651.6,0.001]
[1752986990650,13.90125806,3651.7,3651.6,0.001]
[1752986991173,13.64659322,3651.7,3651.6,0.001]
[1752986991672,13.64719853,3651.7,3651.6,0.001]
[1752986991870,13.90252611,3651.7,3651.6,0.001]
[1752986992175,13.90252611,3651.7,3650.7,0.001]
[1752986992176,2.73888494,3651.2,3650.7,0.001]
[1752986992390,9.43263641,3651.0,3650.7,0.001]
[1752986992752,10.67813641,3651.0,3650.7,0.001]
[1752986993836,10.9334486,3651.0,3650.7,0.001]
[1752986994290,10.93334429,3651.0,3650.7,0.001]
[1752986994436,12.72416721,3651.0,3650.7,0.001]
[1752986994640,12.9793281,3651.0,3650.7,0.001]
[1752986995977,17.2153281,3651.0,3650.7,0.001]